[Event "Titled Tuesday Blitz February 21 Late 2023"]
[White "Berezin, Viktor"]
[Black "Coelho, Ramyres Santana"]
[WhiteFideId "14107872"]
[BlackFideId "2120690"]
[WhiteElo "2307"]
[BlackElo "1981"]
[Result "0-1"]
[Round "11"]
[TimeControl "180+2"]
[Date "2023.02.21"]
[WhiteClock "0:00:14"]
[BlackClock "0:01:48"]

1. d4 {[%clk 0:02:57]}  Nf6 {[%clk 0:02:59]} 2. Bf4 {[%clk 0:02:50]}  Nh5 {[%clk 0:02:56]} 3. e3 {[%clk 0:02:41]}  Nxf4 {[%clk 0:02:56]} 4. exf4 {[%clk 0:02:41]}  g6 {[%clk 0:02:57]} 5. Nf3 {[%clk 0:02:41]}  Bg7 {[%clk 0:02:58]} 6. g3 {[%clk 0:02:41]}  O-O {[%clk 0:02:58]} 7. Bg2 {[%clk 0:02:41]}  c5 {[%clk 0:02:59]} 8. c3 {[%clk 0:02:40]}  cxd4 {[%clk 0:03:00]} 9. Nxd4 {[%clk 0:02:40]}  Nc6 {[%clk 0:03:01]} 10. Nxc6 {[%clk 0:02:39]}  bxc6 {[%clk 0:03:02]} 11. O-O {[%clk 0:02:39]}  Qb6 {[%clk 0:03:02]} 12. Qd2 {[%clk 0:02:35]}  Rb8 {[%clk 0:03:01]} 13. b3 {[%clk 0:02:32]}  d5 {[%clk 0:03:00]} 14. Re1 {[%clk 0:02:32]}  e6 {[%clk 0:03:00]} 15. Qc2 {[%clk 0:02:21]}  Ba6 {[%clk 0:02:59]} 16. Nd2 {[%clk 0:02:21]}  Qc5 {[%clk 0:02:58]} 17. Rac1 {[%clk 0:02:19]}  Rfc8 {[%clk 0:02:54]} 18. Nf3 {[%clk 0:02:19]}  Qd6 {[%clk 0:02:51]} 19. Ne5 {[%clk 0:02:17]}  c5 {[%clk 0:02:47]} 20. h4 {[%clk 0:02:11]}  Bxe5 {[%clk 0:02:44]} 21. fxe5 {[%clk 0:02:07]}  Qe7 {[%clk 0:02:43]} 22. h5 {[%clk 0:02:07]}  d4 {[%clk 0:02:41]} 23. c4 {[%clk 0:02:06]}  Bb7 {[%clk 0:02:40]} 24. Bxb7 {[%clk 0:02:05]}  Rxb7 {[%clk 0:02:38]} 25. Re4 {[%clk 0:02:04]}  Qg5 {[%clk 0:02:32]} 26. hxg6 {[%clk 0:01:56]}  hxg6 {[%clk 0:02:31]} 27. Kg2 {[%clk 0:01:51]}  Kg7 {[%clk 0:02:29]} 28. Rh1 {[%clk 0:01:50]}  Rh8 {[%clk 0:02:22]} 29. Rxh8 {[%clk 0:01:50]}  Kxh8 {[%clk 0:02:23]} 30. Rh4+ {[%clk 0:01:50]}  Kg7 {[%clk 0:02:24]} 31. Qe4 {[%clk 0:01:50]}  Rb8 {[%clk 0:02:20]} 32. Qd3 {[%clk 0:01:37]}  Rh8 {[%clk 0:02:18]} 33. Rxh8 {[%clk 0:01:31]}  Kxh8 {[%clk 0:02:18]} 34. f4 {[%clk 0:01:31]}  Qg4 {[%clk 0:02:11]} 35. a3 {[%clk 0:01:15]}  g5 {[%clk 0:02:09]} 36. fxg5 {[%clk 0:01:00]}  Qxg5 {[%clk 0:02:10]} 37. Qe4 {[%clk 0:00:49]}  Qd2+ {[%clk 0:02:08]} 38. Kh3 {[%clk 0:00:49]}  d3 {[%clk 0:02:01]} 39. Qh4+ {[%clk 0:00:48]}  Kg7 {[%clk 0:02:00]} 40. Qf6+ {[%clk 0:00:48]}  Kg8 {[%clk 0:02:00]} 41. Qd8+ {[%clk 0:00:40]}  Kh7 {[%clk 0:01:58]} 42. Kg4 {[%clk 0:00:27]}  Qe2+ {[%clk 0:01:55]} 43. Kg5 {[%clk 0:00:18]}  Qxe5+ {[%clk 0:01:55]} 44. Kh4 {[%clk 0:00:14]}  Qd4+ {[%clk 0:01:48]} 0-1


[Site "https://www.chess.com"]

[Event "Titled Tuesday Blitz February 21 Late 2023"]
[White "Lucassen, Mickey"]
[Black "Deng, Henry"]
[WhiteFideId "12919110"]
[BlackFideId "30965454"]
[WhiteElo "2023"]
[BlackElo "2168"]
[Result "1-0"]
[Round "11"]
[TimeControl "180+2"]
[Date "2023.02.21"]
[WhiteClock "0:01:32"]
[BlackClock "0:02:01"]

1. e4 {[%clk 0:03:00]}  c5 {[%clk 0:02:58]} 2. Nc3 {[%clk 0:03:00]}  e6 {[%clk 0:02:58]} 3. Nge2 {[%clk 0:03:00]}  Nc6 {[%clk 0:02:58]} 4. g3 {[%clk 0:03:00]}  a6 {[%clk 0:02:52]} 5. Bg2 {[%clk 0:02:59]}  g6 {[%clk 0:02:50]} 6. d4 {[%clk 0:02:56]}  cxd4 {[%clk 0:02:48]} 7. Nxd4 {[%clk 0:02:57]}  Bg7 {[%clk 0:02:48]} 8. Be3 {[%clk 0:02:54]}  Nge7 {[%clk 0:02:48]} 9. O-O {[%clk 0:02:54]}  O-O {[%clk 0:02:44]} 10. Qd2 {[%clk 0:02:54]}  d6 {[%clk 0:02:40]} 11. Rad1 {[%clk 0:02:50]}  Qc7 {[%clk 0:02:36]} 12. Nxc6 {[%clk 0:02:43]}  Nxc6 {[%clk 0:02:35]} 13. Qxd6 {[%clk 0:02:43]}  Qa5 {[%clk 0:02:36]} 14. Qc5 {[%clk 0:02:26]}  Qb4 {[%clk 0:02:28]} 15. Qxb4 {[%clk 0:02:21]}  Nxb4 {[%clk 0:02:28]} 16. Bc5 {[%clk 0:02:20]}  Nxc2 {[%clk 0:02:14]} 17. Bxf8 {[%clk 0:02:15]}  Kxf8 {[%clk 0:02:15]} 18. Rd8+ {[%clk 0:02:12]}  Ke7 {[%clk 0:02:15]} 19. Rfd1 {[%clk 0:02:10]}  Be5 {[%clk 0:02:11]} 20. f4 {[%clk 0:02:05]}  Bc7 {[%clk 0:02:10]} 21. Rh8 {[%clk 0:02:03]}  h5 {[%clk 0:02:10]} 22. e5 {[%clk 0:02:00]}  Ne3 {[%clk 0:02:09]} 23. Rd2 {[%clk 0:01:57]}  Nc4 {[%clk 0:02:09]} 24. Re2 {[%clk 0:01:54]}  Rb8 {[%clk 0:02:05]} 25. Ne4 {[%clk 0:01:51]}  Bd8 {[%clk 0:02:02]} 26. Nf6 {[%clk 0:01:44]}  Bb6+ {[%clk 0:02:01]} 27. Kh1 {[%clk 0:01:41]}  Nd6 {[%clk 0:02:01]} 28. exd6+ {[%clk 0:01:32]}  Kxf6 {[%clk 0:02:01]} 29. d7 {[%clk 0:01:32]} 1-0


[Site "https://www.chess.com"]

[Event "Titled Tuesday Blitz February 21 Late 2023"]
[White "Rottenwohrer Suarez, Juan"]
[Black "mohsengabr2002"]
[WhiteFideId "32068182"]
[WhiteElo "2265"]
[BlackElo "2349"]
[Result "0-1"]
[Round "11"]
[TimeControl "180+2"]
[Date "2023.02.21"]
[WhiteClock "0:00:02"]
[BlackClock "0:00:48"]

1. Nf3 {[%clk 0:03:00]}  f6 {[%clk 0:02:59]} 2. e4 {[%clk 0:02:54]}  g6 {[%clk 0:02:59]} 3. h4 {[%clk 0:02:52]}  Nh6 {[%clk 0:02:58]} 4. d4 {[%clk 0:02:47]}  e6 {[%clk 0:02:58]} 5. e5 {[%clk 0:02:43]}  Nf7 {[%clk 0:02:57]} 6. h5 {[%clk 0:02:30]}  g5 {[%clk 0:02:57]} 7. Nc3 {[%clk 0:02:22]}  h6 {[%clk 0:02:56]} 8. exf6 {[%clk 0:02:18]}  Qxf6 {[%clk 0:02:56]} 9. Bd3 {[%clk 0:02:16]}  d5 {[%clk 0:02:54]} 10. Bg6 {[%clk 0:02:03]}  Nc6 {[%clk 0:02:39]} 11. O-O {[%clk 0:02:02]}  a6 {[%clk 0:02:34]} 12. Re1 {[%clk 0:01:59]}  Be7 {[%clk 0:02:34]} 13. Na4 {[%clk 0:01:22]}  O-O {[%clk 0:02:30]} 14. Nc5 {[%clk 0:01:21]}  Nxd4 {[%clk 0:02:16]} 15. Nxd4 {[%clk 0:00:37]}  Bxc5 {[%clk 0:02:15]} 16. c3 {[%clk 0:00:37]}  Ne5 {[%clk 0:02:10]} 17. Be3 {[%clk 0:00:34]}  Nxg6 {[%clk 0:02:09]} 18. hxg6 {[%clk 0:00:35]}  Qxg6 {[%clk 0:02:02]} 19. Nxe6 {[%clk 0:00:30]}  Bxe6 {[%clk 0:01:43]} 20. Bxc5 {[%clk 0:00:30]}  Rf7 {[%clk 0:01:41]} 21. b4 {[%clk 0:00:22]}  b6 {[%clk 0:01:40]} 22. Bd4 {[%clk 0:00:22]}  Raf8 {[%clk 0:01:34]} 23. Qe2 {[%clk 0:00:22]}  Bc8 {[%clk 0:01:29]} 24. Qe5 {[%clk 0:00:22]}  Kh7 {[%clk 0:01:28]} 25. a4 {[%clk 0:00:21]}  Qf5 {[%clk 0:01:13]} 26. a5 {[%clk 0:00:15]}  Qxe5 {[%clk 0:01:12]} 27. Rxe5 {[%clk 0:00:16]}  bxa5 {[%clk 0:01:07]} 28. Rxa5 {[%clk 0:00:11]}  c6 {[%clk 0:01:07]} 29. Ra1 {[%clk 0:00:10]}  Kg6 {[%clk 0:01:07]} 30. Rae1 {[%clk 0:00:11]}  Rf5 {[%clk 0:01:05]} 31. Re7 {[%clk 0:00:06]}  R8f7 {[%clk 0:01:05]} 32. Re8 {[%clk 0:00:07]}  Bb7 {[%clk 0:01:02]} 33. Rg8+ {[%clk 0:00:06]}  Kh5 {[%clk 0:01:01]} 34. f3 {[%clk 0:00:05]}  Rf4 {[%clk 0:00:57]} 35. g4+ {[%clk 0:00:04]}  Kh4 {[%clk 0:00:56]} 36. Kg2 {[%clk 0:00:04]}  Rxf3 {[%clk 0:00:53]} 37. Be5 {[%clk 0:00:02]}  Kxg4 {[%clk 0:00:52]} 38. Rh8 {[%clk 0:00:01]}  h5 {[%clk 0:00:50]} 39. Rh1 {[%clk 0:00:01]}  h4 {[%clk 0:00:50]} 40. Re1 {[%clk 0:00:01]}  c5 {[%clk 0:00:49]} 41. bxc5 {[%clk 0:00:01]}  d4 {[%clk 0:00:48]} 42. cxd4 {[%clk 0:00:02]}  Re3+ {[%clk 0:00:48]} 43. Kg1 {[%clk 0:00:02]}  Rxe1+ {[%clk 0:00:48]} 0-1


[Site "https://www.chess.com"]

[Event "Titled Tuesday Blitz February 21 Late 2023"]
[White "Prieto Aranguren, Alain"]
[Black "Hajiyev, Kanan"]
[WhiteFideId "2268906"]
[BlackFideId "13404148"]
[WhiteElo "2258"]
[BlackElo "2197"]
[Result "1/2-1/2"]
[Round "11"]
[TimeControl "180+2"]
[Date "2023.02.21"]
[WhiteClock "0:00:10"]
[BlackClock "0:00:29"]

1. d4 {[%clk 0:03:00]}  d5 {[%clk 0:02:59]} 2. c4 {[%clk 0:03:00]}  c6 {[%clk 0:03:00]} 3. cxd5 {[%clk 0:02:59]}  cxd5 {[%clk 0:03:01]} 4. Nc3 {[%clk 0:02:59]}  Nf6 {[%clk 0:03:02]} 5. Nf3 {[%clk 0:02:59]}  a6 {[%clk 0:03:03]} 6. Bg5 {[%clk 0:02:58]}  Nc6 {[%clk 0:03:04]} 7. e3 {[%clk 0:02:58]}  Ne4 {[%clk 0:03:03]} 8. Bf4 {[%clk 0:02:58]}  Bg4 {[%clk 0:03:01]} 9. Be2 {[%clk 0:02:57]}  e6 {[%clk 0:03:01]} 10. O-O {[%clk 0:02:57]}  Nxc3 {[%clk 0:03:00]} 11. bxc3 {[%clk 0:02:56]}  Bd6 {[%clk 0:03:00]} 12. Bg3 {[%clk 0:02:54]}  Bxg3 {[%clk 0:02:59]} 13. hxg3 {[%clk 0:02:53]}  O-O {[%clk 0:03:00]} 14. c4 {[%clk 0:02:52]}  dxc4 {[%clk 0:02:55]} 15. Bxc4 {[%clk 0:02:51]}  Na5 {[%clk 0:02:54]} 16. Be2 {[%clk 0:02:49]}  Rc8 {[%clk 0:02:53]} 17. Qb1 {[%clk 0:02:42]}  b5 {[%clk 0:02:51]} 18. a4 {[%clk 0:02:41]}  Nc4 {[%clk 0:02:41]} 19. axb5 {[%clk 0:02:38]}  Bxf3 {[%clk 0:02:37]} 20. Bxc4 {[%clk 0:02:30]}  Rxc4 {[%clk 0:02:25]} 21. gxf3 {[%clk 0:02:28]}  axb5 {[%clk 0:02:24]} 22. Qxb5 {[%clk 0:02:24]}  Qc7 {[%clk 0:02:21]} 23. Kg2 {[%clk 0:02:21]}  Rc2 {[%clk 0:02:21]} 24. Rfb1 {[%clk 0:02:08]}  Qc3 {[%clk 0:02:11]} 25. Qb3 {[%clk 0:01:05]}  Qd2 {[%clk 0:02:06]} 26. Rf1 {[%clk 0:01:04]}  h5 {[%clk 0:02:01]} 27. Rad1 {[%clk 0:01:03]}  Qe2 {[%clk 0:01:59]} 28. Qd3 {[%clk 0:01:00]}  Rfc8 {[%clk 0:01:37]} 29. Qxe2 {[%clk 0:00:54]}  Rxe2 {[%clk 0:01:38]} 30. Rc1 {[%clk 0:00:54]}  Ra8 {[%clk 0:01:37]} 31. Ra1 {[%clk 0:00:53]}  Rb8 {[%clk 0:01:37]} 32. Rfb1 {[%clk 0:00:53]}  Rxb1 {[%clk 0:01:35]} 33. Rxb1 {[%clk 0:00:52]}  g6 {[%clk 0:01:36]} 34. Rb5 {[%clk 0:00:50]}  Kg7 {[%clk 0:01:34]} 35. e4 {[%clk 0:00:50]}  Rd2 {[%clk 0:01:33]} 36. d5 {[%clk 0:00:50]}  Kf6 {[%clk 0:01:30]} 37. f4 {[%clk 0:00:47]}  exd5 {[%clk 0:01:01]} 38. Rxd5 {[%clk 0:00:46]}  Re2 {[%clk 0:01:02]} 39. e5+ {[%clk 0:00:45]}  Ke6 {[%clk 0:01:00]} 40. Rd6+ {[%clk 0:00:45]}  Ke7 {[%clk 0:01:01]} 41. Kf3 {[%clk 0:00:41]}  Ra2 {[%clk 0:01:01]} 42. Ke3 {[%clk 0:00:41]}  Ra3+ {[%clk 0:01:00]} 43. Rd3 {[%clk 0:00:37]}  Ra2 {[%clk 0:01:00]} 44. Rd2 {[%clk 0:00:37]}  Ra3+ {[%clk 0:01:00]} 45. Ke2 {[%clk 0:00:34]}  h4 {[%clk 0:00:58]} 46. gxh4 {[%clk 0:00:31]}  Rh3 {[%clk 0:00:58]} 47. f3 {[%clk 0:00:30]}  Rxh4 {[%clk 0:00:57]} 48. Ke3 {[%clk 0:00:30]}  Rh1 {[%clk 0:00:58]} 49. Ke4 {[%clk 0:00:28]}  Re1+ {[%clk 0:00:58]} 50. Kd5 {[%clk 0:00:28]}  Re3 {[%clk 0:00:58]} 51. Rf2 {[%clk 0:00:26]}  Ra3 {[%clk 0:00:50]} 52. Kd4 {[%clk 0:00:26]}  Ke6 {[%clk 0:00:50]} 53. Ke4 {[%clk 0:00:24]}  Ra4+ {[%clk 0:00:49]} 54. Ke3 {[%clk 0:00:24]}  Kf5 {[%clk 0:00:50]} 55. Rg2 {[%clk 0:00:19]}  Ra3+ {[%clk 0:00:50]} 56. Ke2 {[%clk 0:00:17]}  Ra2+ {[%clk 0:00:50]} 57. Kf1 {[%clk 0:00:17]}  Ra1+ {[%clk 0:00:41]} 58. Kf2 {[%clk 0:00:16]}  Kxf4 {[%clk 0:00:41]} 59. e6 {[%clk 0:00:16]}  Ra2+ {[%clk 0:00:40]} 60. Kf1 {[%clk 0:00:16]}  Ra1+ {[%clk 0:00:33]} 61. Kf2 {[%clk 0:00:16]}  fxe6 {[%clk 0:00:28]} 62. Rxg6 {[%clk 0:00:16]}  e5 {[%clk 0:00:28]} 63. Rf6+ {[%clk 0:00:17]}  Kg5 {[%clk 0:00:28]} 64. Rf8 {[%clk 0:00:16]}  Ra3 {[%clk 0:00:26]} 65. Ke2 {[%clk 0:00:16]}  Rb3 {[%clk 0:00:26]} 66. Kf2 {[%clk 0:00:17]}  Kg6 {[%clk 0:00:26]} 67. Ke2 {[%clk 0:00:16]}  Kg7 {[%clk 0:00:27]} 68. Rf5 {[%clk 0:00:16]}  Rb5 {[%clk 0:00:27]} 69. Ke3 {[%clk 0:00:16]}  Kg6 {[%clk 0:00:28]} 70. Rf8 {[%clk 0:00:13]}  Rb4 {[%clk 0:00:27]} 71. f4 {[%clk 0:00:10]}  exf4+ {[%clk 0:00:23]} 72. Rxf4 {[%clk 0:00:10]}  Rb3+ {[%clk 0:00:23]} 73. Ke4 {[%clk 0:00:10]}  Kg5 {[%clk 0:00:24]} 74. Rf8 {[%clk 0:00:10]}  Rb4+ {[%clk 0:00:23]} 75. Ke3 {[%clk 0:00:10]}  Rb1 {[%clk 0:00:22]} 76. Ke4 {[%clk 0:00:09]}  Re1+ {[%clk 0:00:21]} 77. Kd3 {[%clk 0:00:09]}  Rd1+ {[%clk 0:00:22]} 78. Ke2 {[%clk 0:00:09]}  Rd6 {[%clk 0:00:23]} 79. Ke3 {[%clk 0:00:09]}  Re6+ {[%clk 0:00:22]} 80. Kd2 {[%clk 0:00:08]}  Ra6 {[%clk 0:00:23]} 81. Ke2 {[%clk 0:00:08]}  Kg6 {[%clk 0:00:23]} 82. Kd2 {[%clk 0:00:08]}  Kg7 {[%clk 0:00:24]} 83. Rf3 {[%clk 0:00:07]}  Ra2+ {[%clk 0:00:25]} 84. Kd3 {[%clk 0:00:07]}  Ra3+ {[%clk 0:00:25]} 85. Ke4 {[%clk 0:00:08]}  Ra2 {[%clk 0:00:26]} 86. Kf4 {[%clk 0:00:08]}  Kg6 {[%clk 0:00:26]} 87. Re3 {[%clk 0:00:08]}  Ra4+ {[%clk 0:00:26]} 88. Kf3 {[%clk 0:00:08]}  Kf5 {[%clk 0:00:26]} 89. Ke2 {[%clk 0:00:08]}  Kf4 {[%clk 0:00:26]} 90. Rf3+ {[%clk 0:00:09]}  Ke4 {[%clk 0:00:26]} 91. Re3+ {[%clk 0:00:09]}  Kd4 {[%clk 0:00:26]} 92. Rd3+ {[%clk 0:00:09]}  Ke4 {[%clk 0:00:27]} 93. Re3+ {[%clk 0:00:10]}  Kf4 {[%clk 0:00:28]} 94. Rf3+ {[%clk 0:00:10]}  Kg4 {[%clk 0:00:28]} 95. Rd3 {[%clk 0:00:10]}  Ra2+ {[%clk 0:00:28]} 96. Rd2 {[%clk 0:00:10]}  Ra3 {[%clk 0:00:29]} 97. Rd3 {[%clk 0:00:10]}  Ra4 {[%clk 0:00:29]} 98. Re3 {[%clk 0:00:10]}  Kf4 {[%clk 0:00:29]} 1/2-1/2


[Site "https://www.chess.com"]

[Event "Titled Tuesday Blitz February 21 Late 2023"]
[White "Seletsky, Grigory"]
[Black "Magallanes, Rey Jomar"]
[WhiteFideId "14112191"]
[BlackFideId "5205948"]
[WhiteElo "2259"]
[BlackElo "2052"]
[Result "0-1"]
[Round "11"]
[TimeControl "180+2"]
[Date "2023.02.21"]
[WhiteClock "0:00:23"]
[BlackClock "0:01:17"]

1. e4 {[%clk 0:03:00]}  c5 {[%clk 0:02:59]} 2. Nf3 {[%clk 0:03:00]}  d6 {[%clk 0:02:59]} 3. c3 {[%clk 0:03:00]}  g6 {[%clk 0:02:56]} 4. d4 {[%clk 0:02:59]}  cxd4 {[%clk 0:02:55]} 5. cxd4 {[%clk 0:03:00]}  Bg7 {[%clk 0:02:54]} 6. h3 {[%clk 0:03:00]}  Nc6 {[%clk 0:02:54]} 7. Nc3 {[%clk 0:03:00]}  e6 {[%clk 0:02:54]} 8. Be3 {[%clk 0:03:00]}  Nge7 {[%clk 0:02:55]} 9. Qd2 {[%clk 0:02:57]}  d5 {[%clk 0:02:55]} 10. e5 {[%clk 0:02:56]}  O-O {[%clk 0:02:55]} 11. Bd3 {[%clk 0:02:53]}  Nb4 {[%clk 0:02:50]} 12. Bb1 {[%clk 0:02:50]}  Nbc6 {[%clk 0:02:49]} 13. Bh6 {[%clk 0:02:46]}  Nf5 {[%clk 0:02:49]} 14. Bxf5 {[%clk 0:02:42]}  exf5 {[%clk 0:02:47]} 15. Bxg7 {[%clk 0:02:42]}  Kxg7 {[%clk 0:02:48]} 16. O-O-O {[%clk 0:02:31]}  Be6 {[%clk 0:02:48]} 17. g4 {[%clk 0:02:30]}  Rc8 {[%clk 0:02:47]} 18. Kb1 {[%clk 0:02:24]}  Nb4 {[%clk 0:02:46]} 19. Ng5 {[%clk 0:02:21]}  Qd7 {[%clk 0:02:38]} 20. Nxe6+ {[%clk 0:02:12]}  Qxe6 {[%clk 0:02:38]} 21. g5 {[%clk 0:02:00]}  a5 {[%clk 0:02:34]} 22. f4 {[%clk 0:02:00]}  Rc4 {[%clk 0:02:29]} 23. b3 {[%clk 0:01:58]}  Rc7 {[%clk 0:02:26]} 24. Rc1 {[%clk 0:01:49]}  Rfc8 {[%clk 0:02:26]} 25. Na4 {[%clk 0:01:43]}  b6 {[%clk 0:02:23]} 26. Rxc7 {[%clk 0:01:41]}  Rxc7 {[%clk 0:02:24]} 27. Rc1 {[%clk 0:01:40]}  Rxc1+ {[%clk 0:02:20]} 28. Qxc1 {[%clk 0:01:39]}  Nd3 {[%clk 0:02:19]} 29. Qd2 {[%clk 0:01:36]}  Nb4 {[%clk 0:02:20]} 30. a3 {[%clk 0:01:32]}  Na6 {[%clk 0:02:20]} 31. Qc3 {[%clk 0:01:23]}  b5 {[%clk 0:02:02]} 32. Nc5 {[%clk 0:01:21]}  Nxc5 {[%clk 0:02:03]} 33. Qxc5 {[%clk 0:01:20]}  a4 {[%clk 0:02:00]} 34. Qxb5 {[%clk 0:01:07]}  axb3 {[%clk 0:01:59]} 35. Qxb3 {[%clk 0:01:07]}  Qa6 {[%clk 0:01:59]} 36. a4 {[%clk 0:01:00]}  Qf1+ {[%clk 0:01:58]} 37. Kb2 {[%clk 0:00:57]}  Qf2+ {[%clk 0:01:57]} 38. Kc3 {[%clk 0:00:52]}  Qe3+ {[%clk 0:01:56]} 39. Kb4 {[%clk 0:00:52]}  Qxd4+ {[%clk 0:01:56]} 40. Kb5 {[%clk 0:00:53]}  Qa7 {[%clk 0:01:47]} 41. a5 {[%clk 0:00:52]}  Qb7+ {[%clk 0:01:45]} 42. Ka4 {[%clk 0:00:52]}  Qc6+ {[%clk 0:01:43]} 43. Qb5 {[%clk 0:00:52]}  Qc2+ {[%clk 0:01:42]} 44. Kb4 {[%clk 0:00:53]}  d4 {[%clk 0:01:34]} 45. a6 {[%clk 0:00:49]}  Qc3+ {[%clk 0:01:31]} 46. Ka4 {[%clk 0:00:45]}  Qa1+ {[%clk 0:01:31]} 47. Kb3 {[%clk 0:00:37]}  Qc3+ {[%clk 0:01:30]} 48. Ka2 {[%clk 0:00:28]}  d3 {[%clk 0:01:27]} 49. a7 {[%clk 0:00:28]}  d2 {[%clk 0:01:23]} 50. Qb2 {[%clk 0:00:23]}  Qa5+ {[%clk 0:01:18]} 51. Qa3 {[%clk 0:00:23]}  Qxa3+ {[%clk 0:01:17]} 52. Kxa3 {[%clk 0:00:23]}  d1=Q {[%clk 0:01:17]} 53. a8=Q {[%clk 0:00:23]}  Qa1+ {[%clk 0:01:17]} 0-1


[Site "https://www.chess.com"]

[Event "Titled Tuesday Blitz February 21 Late 2023"]
[White "Kovalevsky, Stanislav"]
[Black "Winkels, Marcel"]
[WhiteFideId "13508598"]
[BlackFideId "1003887"]
[WhiteElo "2237"]
[BlackElo "1960"]
[Result "1-0"]
[Round "11"]
[TimeControl "180+2"]
[Date "2023.02.21"]
[WhiteClock "0:00:34"]
[BlackClock "0:00:01"]

1. e4 {[%clk 0:03:00]}  c5 {[%clk 0:02:58]} 2. c4 {[%clk 0:02:59]}  Nc6 {[%clk 0:02:50]} 3. Nc3 {[%clk 0:02:59]}  g6 {[%clk 0:02:47]} 4. a3 {[%clk 0:02:58]}  Bg7 {[%clk 0:02:48]} 5. Rb1 {[%clk 0:02:59]}  d6 {[%clk 0:02:43]} 6. b4 {[%clk 0:02:58]}  Nd4 {[%clk 0:02:42]} 7. Nge2 {[%clk 0:02:55]}  Nf6 {[%clk 0:02:37]} 8. d3 {[%clk 0:02:50]}  O-O {[%clk 0:02:31]} 9. Nxd4 {[%clk 0:02:49]}  cxd4 {[%clk 0:02:30]} 10. Ne2 {[%clk 0:02:41]}  e5 {[%clk 0:02:22]} 11. g3 {[%clk 0:02:40]}  Ng4 {[%clk 0:02:17]} 12. Bg2 {[%clk 0:02:36]}  f5 {[%clk 0:02:13]} 13. O-O {[%clk 0:02:24]}  Rb8 {[%clk 0:02:04]} 14. c5 {[%clk 0:02:05]}  fxe4 {[%clk 0:01:56]} 15. Bxe4 {[%clk 0:02:02]}  d5 {[%clk 0:01:54]} 16. Bg2 {[%clk 0:01:53]}  Be6 {[%clk 0:01:35]} 17. h3 {[%clk 0:01:49]}  Nf6 {[%clk 0:01:26]} 18. f4 {[%clk 0:01:29]}  Nd7 {[%clk 0:01:18]} 19. fxe5 {[%clk 0:01:27]}  Bxe5 {[%clk 0:01:01]} 20. Nf4 {[%clk 0:01:21]}  Bxf4 {[%clk 0:00:44]} 21. Bxf4 {[%clk 0:01:22]}  Rc8 {[%clk 0:00:40]} 22. Qb3 {[%clk 0:01:10]}  Nf6 {[%clk 0:00:33]} 23. Be5 {[%clk 0:01:06]}  Nh5 {[%clk 0:00:31]} 24. g4 {[%clk 0:01:03]}  Ng7 {[%clk 0:00:21]} 25. Qb2 {[%clk 0:00:57]}  Qd7 {[%clk 0:00:19]} 26. Qxd4 {[%clk 0:00:56]}  Rxf1+ {[%clk 0:00:14]} 27. Rxf1 {[%clk 0:00:57]}  Ne8 {[%clk 0:00:12]} 28. Rf2 {[%clk 0:00:54]}  Nc7 {[%clk 0:00:09]} 29. a4 {[%clk 0:00:49]}  Na6 {[%clk 0:00:07]} 30. Bd6 {[%clk 0:00:43]}  Qxa4 {[%clk 0:00:05]} 31. Bxd5 {[%clk 0:00:42]}  Qd7 {[%clk 0:00:03]} 32. Qc4 {[%clk 0:00:34]}  Bxd5 {[%clk 0:00:01]} 33. Qxd5+ {[%clk 0:00:35]}  Kg7 {[%clk 0:00:02]} 34. Be5+ {[%clk 0:00:34]}  Kh6 {[%clk 0:00:01]} 35. Qxd7 {[%clk 0:00:34]} 1-0


[Site "https://www.chess.com"]